bitfinex-derivatives/quotes_ETHF0:USTF0_20250213
["timestamp","ask_amount","ask_price","bid_price","bid_amount"]
[1739428803444,0.00557227,2695.3,2695.2,0.74195]
[1739428810338,0.74198,2695.1,2694.8,0.74204]
[1739428810646,0.74198,2695.1,2694.7,0.5667]
[1739428810647,0.00557227,2695.3,2694.9,1.889]
[1739428810838,0.00557227,2695.3,2695.0,0.74199]
[1739428811241,0.00557227,2695.3,2694.9,1.889]
[1739428811442,0.00557227,2695.3,2695.2,0.74195]
[1739428812044,0.5937,2696.1,2695.2,3.78412947]
[1739428812359,0.74166,2696.3,2695.6,3.78412947]
[1739428812539,0.74165,2696.3,2695.8,0.74177]
[1739428812745,3.2078,2696.5,2695.7,43.4358]
[1739428812941,3.2078,2696.5,2695.7,43.43581]
[1739428813137,0.74171,2696.1,2695.7,43.43581]
[1739428813343,3.2078,2696.2,2695.8,0.00557227]
[1739428813652,0.74175,2695.9,2695.8,0.00557227]
[1739428814446,0.74175,2696.0,2695.8,0.00557227]
[1739428814749,3.2078,2696.2,2695.8,0.00557227]
[1739428814949,0.74173,2696.0,2695.8,0.00557227]
[1739428815449,3.2078,2696.2,2695.8,0.00557227]
[1739428815649,3.94955,2695.9,2695.8,0.00557227]
[1739428815847,3.2078,2695.9,2694.4,3.7627]
[1739428816052,3.2078,2695.3,2694.4,3.2078]
[1739428816252,0.74207,2694.8,2694.5,1.892]
[1739428816548,3.2078,2695.0,2694.5,1.892]
[1739428816750,0.74211,2694.6,2694.2,0.74221]
[1739428816952,0.74211,2694.6,2694.3,40.8]
[1739428817251,0.74211,2694.6,2694.5,0.00557227]
[1739428817458,0.74211,2694.6,2693.6,0.5463]
[1739428817459,0.74218,2694.4,2693.9,2.6343]
[1739428817654,6.99192947,2694.6,2693.9,2.6343]
[1739428817846,0.74219,2694.4,2693.9,2.6343]
[1739428818545,0.74219,2694.4,2693.9,2.63987227]
[1739428819257,0.74219,2694.4,2694.0,0.74227]
[1739428819548,0.74218,2694.4,2693.9,2.63986227]
[1739428819744,0.5772,2694.5,2693.9,1.89757227]
[1739428820051,1.31936,2694.5,2694.0,0.74226]
[1739428820250,0.5772,2694.5,2694.1,0.74224]
[1739428820450,1.31935,2694.5,2694.0,0.74227]
[1739428820662,0.5791,2694.9,2694.3,3.2078]
[1739428820663,3.2078,2694.9,2694.3,3.2078]
[1739428820950,0.74204,2694.9,2694.4,0.74217]
[1739428821153,3.95539227,2695.0,2694.5,0.74214]
[1739428821354,3.21337227,2695.0,2694.5,1.889]
[1739428821555,0.74208,2694.8,2694.5,1.889]
[1739428821757,0.74204,2694.9,2694.5,1.889]
[1739428821954,3.21337227,2695.0,2694.5,1.889]
[1739428822149,3.78412947,2694.9,2694.0,3.2078]
[1739428822356,0.74216,2694.5,2694.1,1.888]
[1739428822652,0.74214,2694.6,2694.1,1.888]
[1739428822858,3.78412947,2694.9,2694.2,0.7422]
[1739428823055,0.74211,2694.6,2694.2,0.7422]
[1739428823356,0.74215,2694.5,2694.1,2.63025]
[1739428823558,0.74218,2694.4,2694.1,1.888]
[1739428823857,3.2078,2694.4,2693.9,0.00557227]
[1739428824157,0.74227,2694.1,2693.9,0.00557227]
[1739428824352,0.74224,2694.2,2693.9,0.00557227]
[1739428824746,0.5401,2694.3,2693.9,0.00557227]
[1739428824954,1.28232,2694.3,2693.9,0.74787227]
[1739428825153,0.5401,2694.3,2693.9,0.00557227]
[1739428825555,0.74228,2694.0,2693.9,0.00557227]
[1739428825961,3.2078,2694.1,2693.9,0.74786227]
[1739428826164,3.2078,2694.1,2693.9,0.00557227]
[1739428826557,0.74228,2694.0,2693.9,0.00557227]
[1739428826756,3.2078,2694.1,2693.9,0.00557227]
[1739428828062,3.2078,2694.1,2693.9,0.74787227]
[1739428828259,0.74228,2694.0,2693.9,0.00557227]
[1739428828762,3.2078,2694.7,2693.9,0.00557227]
[1739428828964,0.74211,2694.6,2694.2,0.74222]
[1739428829765,3.78412947,2694.9,2693.9,0.00557227]
[1739428830064,0.7421,2694.7,2694.0,3.2078]
[1739428830357,0.74211,2694.7,2694.1,1.873]
[1739428830554,3.77597227,2695.0,2694.5,0.74214]
[1739428830752,3.77597227,2695.0,2694.1,1.873]
[1739428830962,0.74205,2694.9,2694.5,0.74213]
[1739428831162,0.74205,2694.9,2694.5,0.74212]
[1739428831358,3.77597227,2695.0,2694.2,0.5427]
[1739428831359,0.74207,2694.8,2694.4,0.74215]
[1739428831565,3.77597227,2695.0,2694.2,0.5427]
[1739428831864,3.9496,2695.8,2695.3,0.74189]
[1739428832052,3.2078,2695.8,2695.1,0.74197]
[1739428832256,0.74188,2695.5,2695.0,2.61899]
[1739428832454,0.74184,2695.6,2695.1,0.74197]
[1739428832665,3.94964,2695.6,2695.1,0.74197]
[1739428832867,0.74188,2695.5,2695.0,2.619]
[1739428833058,0.74189,2695.4,2695.1,0.00557227]
[1739428833260,0.74188,2695.5,2695.1,0.00557227]
[1739428833557,3.95522227,2695.6,2695.1,0.00557227]
[1739428833957,3.95522227,2695.6,2695.1,0.74753227]
[1739428834161,3.21337227,2695.6,2695.1,0.00557227]
[1739428834362,3.21337227,2695.6,2695.2,0.74193]
[1739428834875,3.21337227,2695.6,2695.1,0.00557227]
[1739428835462,3.21337227,2695.6,2695.4,0.74188]
[1739428835662,3.21337227,2695.6,2695.1,0.00557227]
[1739428835964,3.21337227,2695.6,2695.5,0.74186]
[1739428838362,3.21337227,2695.6,2695.2,3.2078]
[1739428838567,3.21337227,2695.6,2695.5,0.74186]
[1739428839170,0.00557227,2695.6,2695.5,0.74186]
[1739428839966,3.7607,2696.4,2695.5,3.2078]
[1739428840164,0.74165,2696.3,2695.9,0.74174]
[1739428840470,4.50232,2696.4,2696.0,0.74172]
[1739428840872,4.50232,2696.4,2695.6,1.859]
[1739428841172,0.00557227,2696.3,2696.1,0.74169]
[1739428841471,0.00557227,2696.3,2696.2,0.74167]
[1739428842274,0.00557227,2696.3,2696.2,3.94947]
[1739428842870,0.00557227,2696.3,2696.2,0.74167]
[1739428843864,0.00557227,2696.3,2696.2,2.59367]
[1739428844067,0.00557227,2696.3,2696.2,5.80147]
[1739428844466,0.00557227,2696.3,2696.2,9.58559947]
[1739428845365,3.2078,2696.9,2696.2,9.58559947]
[1739428845570,3.2078,2697.5,2696.5,3.2078]
[1739428845773,3.2078,2697.5,2696.8,6.99192947]
[1739428845970,3.94913,2697.5,2697.1,0.74141]
[1739428846173,3.2078,2697.5,2696.9,1.849]
[1739428846369,3.94913,2697.5,2697.1,0.74142]
[1739428846669,0.74136,2697.4,2697.0,0.00556163]
[1739428846876,3.2078,2697.5,2697.0,0.00556163]
[1739428846877,0.74139,2697.3,2697.0,0.00556163]
[1739428847778,3.2078,2697.5,2697.0,0.00556163]
[1739428847967,0.74135,2697.4,2697.0,0.74700163]
[1739428848169,3.94913,2697.5,2697.1,0.74142]
[1739428848372,3.2078,2697.5,2697.0,0.00556163]
[1739428849275,3.94913,2697.5,2697.3,0.00261569]
[1739428849476,3.2078,2697.5,2697.3,0.00261569]
[1739428849980,3.94912,2697.5,2697.3,0.00261569]
[1739428850381,0.74134,2697.4,2697.3,0.00261569]
[1739428850775,0.74142,2697.1,2697.0,0.00556163]
[1739428851578,3.2078,2697.2,2697.0,0.00556163]
[1739428852185,3.9492,2697.2,2697.0,0.74700163]
[1739428852367,3.2078,2697.2,2697.1,0.74142]
[1739428852778,3.9492,2697.2,2697.0,0.74700163]
[1739428853274,3.9492,2697.2,2697.0,0.00556163]
[1739428853472,0.74142,2697.1,2697.0,0.00556163]
[1739428853875,1.31812,2697.1,2697.0,0.00556163]
[1739428854178,0.5767,2697.1,2697.0,0.00556163]
[1739428855078,3.2078,2697.2,2697.0,0.00556163]
[1739428855079,3.2078,2697.2,2697.1,0.74142]
[1739428856682,3.2078,2697.2,2697.0,0.00556163]
[1739428856875,3.2078,2697.2,2697.1,0.74142]
[1739428857983,3.2078,2697.5,2697.4,0.74132]
[1739428858782,0.0036548,2697.6,2697.5,0.74131]
[1739428859169,0.0036548,2697.6,2697.4,1.843]
[1739428859368,0.0036548,2697.6,2697.5,0.74131]
[1739428860174,3.2078,2698.3,2697.5,1.85329]
[1739428860379,3.2078,2698.3,2697.7,3.78412947]
[1739428860575,3.2078,2698.3,2697.5,0.5906]
[1739428860775,0.74122,2697.9,2697.4,9.38912947]
[1739428861279,0.74121,2697.9,2697.5,0.74129]
[1739428861472,0.5455,2698.4,2697.4,3.762]
[1739428861473,3.2078,2698.0,2697.4,3.762]
[1739428861670,0.74131,2697.5,2697.4,1.841]
[1739428861976,3.2078,2697.7,2697.4,2.58232]
[1739428862178,3.2078,2697.7,2697.6,0.74129]
[1739428862378,3.2078,2697.7,2697.4,1.841]
[1739428862575,3.2078,2697.7,2697.6,0.74129]
[1739428862780,3.2078,2697.7,2697.4,1.841]
[1739428862980,0.74124,2697.8,2697.5,0.7413]
[1739428863281,0.5668,2697.9,2697.8,0.74123]
[1739428863680,3.2078,2698.2,2698.0,0.74115]
[1739428863880,3.94892,2698.2,2697.8,0.74122]
[1739428864386,3.2078,2698.2,2697.5,0.5507]
[1739428864588,0.74115,2698.1,2697.8,0.74122]
[1739428865382,0.74128,2697.7,2697.4,5.79013]
[1739428865580,3.2078,2697.9,2697.4,5.0488]
[1739428865884,3.94903,2697.9,2697.6,0.74127]
[1739428866287,3.2078,2697.9,2697.5,0.7413]
[1739428866985,3.2078,2697.9,2697.4,5.0488]
[1739428867181,3.2078,2697.9,2697.8,0.74123]
[1739428867389,0.5389,2698.0,2697.9,0.7412]
[1739428867779,0.5389,2698.0,2697.8,0.74122]
[1739428868179,0.5389,2698.0,2697.9,0.7412]
[1739428868382,0.5389,2698.0,2697.8,0.74122]
[1739428868579,0.5389,2698.0,2697.4,10.68627947]
[1739428868774,0.5389,2698.0,2697.4,8.83292947]
[1739428868975,3.2078,2697.7,2696.9,0.5769]
[1739428869177,3.2078,2697.1,2696.0,3.2078]
[1739428869590,0.74158,2696.6,2696.1,0.74168]
[1739428869880,3.2078,2696.7,2696.4,0.7416]
[1739428870087,3.2078,2696.7,2696.0,44.0078]
[1739428870387,0.74713163,2696.6,2696.1,0.74726163]
[1739428870683,0.00556163,2696.6,2696.3,0.74163]
[1739428870984,0.00556163,2696.6,2696.5,0.74159]
[1739428871177,0.00556163,2696.6,2696.2,1.843]
[1739428871378,0.00556163,2696.6,2696.1,1.84856163]
[1739428871582,0.74163,2696.4,2696.1,1.84856163]
[1739428871785,0.74165,2696.3,2696.1,1.84856163]
[1739428872080,0.74159,2696.5,2696.1,0.00556163]
[1739428872280,0.00556163,2696.6,2696.1,0.00556163]
[1739428872481,0.00556163,2696.6,2696.4,0.7416]
[1739428872679,0.00556163,2696.6,2696.5,0.74159]
[1739428873090,0.00556163,2696.6,2696.4,0.7416]
[1739428873484,0.00556163,2696.6,2696.2,4.52578947]
[1739428873684,0.00556163,2696.6,2696.2,0.74166]
[1739428874187,0.00556163,2696.6,2696.1,0.00556163]
[1739428874490,0.00556163,2696.6,2696.2,0.74166]
[1739428874687,0.00556163,2696.6,2696.1,0.00556163]
[1739428874982,0.00556163,2696.6,2696.5,0.74159]
[1739428875488,0.00556163,2696.6,2696.4,1.0873]
[1739428875879,0.00556163,2696.6,2696.1,0.00556163]
[1739428876082,3.21336163,2696.6,2696.1,0.00556163]
[1739428876387,3.2078,2696.2,2695.5,3.2078]
[1739428876584,3.2078,2695.9,2694.7,8.14372947]
[1739428876783,0.74183,2695.7,2695.2,0.74194]
[1739428877090,3.2078,2695.9,2695.3,40.8]
[1739428877291,0.5696,2696.1,2694.8,10.37140216]
[1739428877292,3.2078,2695.6,2694.8,0.5514]
[1739428877486,0.74202,2695.0,2694.8,2.3984]
[1739428877681,3.2078,2695.3,2694.9,0.00556163]
[1739428877887,0.00556163,2695.2,2694.9,0.74757163]
[1739428878183,0.00556163,2695.2,2694.9,0.00556163]
[1739428879290,0.74751163,2695.2,2694.9,0.00556163]
[1739428879487,0.00556163,2695.2,2694.9,0.00556163]
[1739428879683,0.00556163,2695.2,2694.9,0.74757163]
[1739428879892,0.00556163,2695.2,2695.0,0.74199]
[1739428880388,0.00556163,2695.2,2695.1,0.74197]
[1739428880689,0.00556163,2695.2,2694.9,0.00556163]
[1739428880894,0.00556163,2695.2,2695.0,0.742]
[1739428882291,0.00556163,2695.2,2694.9,0.00556163]
[1739428882488,0.00556163,2695.2,2695.0,3.2078]
[1739428882696,0.00556163,2695.2,2695.1,0.74197]
[1739428883381,0.00556163,2695.2,2695.0,6.99192947]
[1739428883586,0.00556163,2695.2,2695.0,3.2078]
[1739428884187,0.00556163,2695.2,2694.9,0.00556163]
[1739428884387,0.00556163,2695.2,2695.0,0.742]
[1739428884588,0.00556163,2695.2,2694.9,0.00556163]
[1739428884794,0.00556163,2695.2,2695.1,0.74197]
[1739428885492,0.00556163,2695.2,2694.9,0.00556163]
[1739428885693,0.00556163,2695.2,2694.9,0.74757163]
[1739428886189,0.00556163,2695.2,2694.9,0.00556163]
[1739428886494,0.00556163,2695.2,2694.9,0.74758163]
[1739428886896,0.74752163,2695.2,2694.9,0.00556163]
[1739428887401,0.00556163,2695.2,2695.1,0.74197]
[1739428887790,0.00556163,2695.2,2695.0,3.94978]
[1739428887985,0.00556163,2695.2,2694.9,0.00556163]
[1739428888197,0.00556163,2695.2,2695.1,0.74197]
[1739428888394,0.00556163,2695.2,2695.0,0.74198]
[1739428888994,0.00556163,2695.2,2695.1,0.74197]
[1739428890492,0.00556163,2695.2,2695.0,0.74199]
[1739428890894,0.00556163,2695.2,2694.9,0.00556163]
[1739428891199,0.74752163,2695.2,2694.9,0.74759163]
[1739428891494,0.00556163,2695.2,2694.9,0.00556163]
[1739428891800,0.00556163,2695.2,2695.1,0.74197]
[1739428892697,0.00556163,2695.2,2695.0,3.2078]
[1739428893194,0.742,2695.0,2694.9,0.00556163]
[1739428893596,0.74213,2694.6,2694.3,0.5843]
[1739428893798,3.2078,2694.9,2694.4,0.74216]
[1739428894097,0.74211,2694.7,2694.4,0.74216]
[1739428894289,3.2078,2694.9,2694.3,0.5843]
[1739428894493,3.2078,2694.9,2694.6,0.7421]
[1739428894689,3.2078,2694.9,2694.3,0.5843]
[1739428894690,3.94983,2694.9,2694.5,0.00556163]
[1739428894889,3.2078,2694.9,2694.5,0.00556163]
[1739428895090,0.74207,2694.8,2694.6,0.7421]
[1739428895301,0.74207,2694.8,2694.5,0.74769163]
[1739428895599,0.74211,2694.6,2694.5,0.00556163]
[1739428895797,3.2078,2694.9,2694.5,0.00556163]
[1739428896098,0.74208,2694.8,2694.5,0.74770163]
[1739428896298,3.2078,2694.9,2694.5,0.00556163]
[1739428896706,3.2078,2694.9,2694.6,0.74209]
[1739428897001,3.94984,2694.9,2694.6,0.74209]
[1739428898002,3.2078,2694.9,2694.6,0.74211]
[1739428898191,3.94983,2694.9,2694.6,0.74211]
[1739428898391,3.2078,2694.9,2694.5,0.00556163]
[1739428898697,3.2078,2694.9,2694.7,0.74207]
[1739428898902,0.00556163,2695.2,2695.1,0.74197]
[1739428900798,0.00556163,2695.2,2695.1,1.29137]
[1739428901997,3.2078,2695.8,2695.1,4.49917]
[1739428902198,3.2078,2695.8,2695.7,0.74181]
[1739428902500,3.2078,2695.8,2695.7,2.54881]
[1739428903595,0.00556163,2696.0,2695.7,5.0148]
[1739428903791,0.00556163,2696.0,2695.9,0.74175]
[1739428904300,0.00556163,2696.0,2695.8,0.575]
[1739428904501,0.00556163,2696.0,2695.8,1.31677]
[1739428904698,0.00556163,2696.0,2695.9,0.74175]
[1739428904903,0.00556163,2696.0,2695.8,1.31677]
[1739428905211,0.74175,2695.9,2695.8,0.575]
[1739428905503,0.74183,2695.7,2695.6,1.802]
[1739428905807,0.00556163,2696.0,2695.9,0.74175]
[1739428906310,0.00556163,2696.0,2695.7,1.1586]
[1739428906501,0.00556163,2696.0,2695.8,0.74178]
[1739428906695,0.00556163,2696.0,2695.9,0.74175]
[1739428907608,0.5695,2696.6,2695.9,9.78412947]
[1739428907904,0.5695,2696.6,2696.4,0.7416]
[1739428908205,0.5695,2696.6,2696.4,2.5486]
[1739428909003,0.5695,2696.6,2696.4,1.807]
[1739428910103,0.5695,2696.6,2696.4,2.54862]
[1739428911704,3.94935,2696.7,2696.4,2.54862]
[1739428911705,3.2078,2696.7,2696.4,1.807]
[1739428912011,3.2078,2696.7,2696.5,0.74158]
[1739428912208,3.2078,2696.7,2696.6,0.74156]
[1739428912512,0.00556163,2696.8,2696.7,0.74153]
[1739428914013,3.2078,2697.7,2696.7,1.85384]
[1739428914315,3.2078,2697.7,2697.3,0.74136]
[1739428914611,3.2078,2697.7,2697.4,0.74134]
[1739428914801,0.5709,2698.0,2697.3,1.797]
[1739428915006,0.5709,2698.0,2697.3,5.0048]
[1739428915209,3.2078,2698.1,2697.6,3.2078]
[1739428915509,3.2078,2698.1,2697.7,0.74123]
[1739428916013,3.94896,2698.1,2697.6,0.00556163]
[1739428916311,0.74124,2697.8,2697.7,1.797]
[1739428916516,0.5858,2698.0,2697.7,1.797]
[1739428916812,0.5791,2697.9,2697.7,1.797]
[1739428917012,1.32031,2697.9,2697.7,1.797]
[1739428917309,0.5791,2697.9,2697.7,1.797]
[1739428917509,0.5791,2697.9,2697.6,0.00556163]
[1739428917709,0.74126,2697.7,2697.6,0.00556163]
[1739428918314,3.2078,2697.8,2697.6,0.00556163]
[1739428918508,0.74126,2697.7,2697.6,0.00556163]
[1739428919514,3.2078,2697.8,2697.6,0.00556163]
[1739428919713,0.74126,2697.7,2697.6,0.00556163]
[1739428920109,3.2078,2697.8,2697.6,0.00556163]
[1739428920314,3.2078,2697.8,2697.7,0.74126]
[1739428920509,3.2078,2697.8,2697.6,0.00556163]
[1739428920510,3.94904,2697.8,2697.6,0.74683163]
[1739428920818,3.2078,2697.8,2697.6,0.74683163]
[1739428921021,3.2078,2697.8,2697.6,0.00556163]
[1739428921215,3.2078,2697.8,2697.6,0.74683163]
[1739428921410,3.2078,2697.8,2697.6,0.00556163]
[1739428921622,0.74126,2697.7,2697.6,0.00556163]
[1739428921812,3.2078,2697.8,2697.6,0.00556163]
[1739428922320,3.2078,2697.8,2697.7,0.74126]
[1739428922717,3.2078,2697.8,2697.6,0.00556163]
[1739428922914,3.2078,2697.8,2697.7,0.74126]
[1739428923618,3.2078,2697.8,2697.6,0.00556163]
[1739428924123,0.74126,2697.7,2697.6,0.00556163]
[1739428925716,0.74147,2697.0,2696.9,1.791]
[1739428926319,3.2078,2697.2,2696.4,0.5376]
[1739428926623,3.2078,2696.9,2696.6,1.79]
[1739428926820,0.74151,2696.8,2696.7,0.74153]
[1739428927020,6.98342303,2696.9,2696.5,0.00556163]
[1739428927225,3.2078,2696.6,2695.4,3.77562303]
[1739428927427,3.2078,2696.1,2695.3,3.4864]
[1739428927627,3.2078,2696.1,2695.8,0.74176]
[1739428927927,3.2078,2696.1,2695.8,0.74175]
[1739428928131,3.2078,2696.1,2695.7,0.74179]
[1739428928321,3.2078,2695.8,2695.7,0.00556163]
[1739428930218,3.2078,2696.1,2695.9,0.74174]
[1739428930425,0.74166,2696.3,2695.7,0.74735163]
[1739428930619,3.2078,2696.4,2695.7,0.00556163]
[1739428931327,0.74176,2695.9,2695.7,0.00556163]
[1739428931528,3.2078,2695.8,2695.7,0.00556163]
[1739428937039,0.5699,2696.0,2695.9,0.74175]
[1739428937347,3.2078,2696.2,2695.7,0.00556163]
[1739428937840,3.2078,2696.2,2695.7,3.21336163]
[1739428938035,3.2078,2696.2,2695.8,0.5924]
[1739428938236,3.2078,2696.2,2696.0,0.74173]
[1739428938642,3.2078,2696.2,2696.0,0.74171]
[1739428939545,3.2078,2696.2,2695.9,1.792]
[1739428939736,3.94948,2696.2,2695.9,1.792]
[1739428940241,0.7417,2696.1,2695.9,1.792]
[1739428941041,3.2078,2696.2,2695.9,1.792]
[1739428941346,3.2078,2696.2,2696.0,0.74171]
[1739428941743,3.2078,2696.2,2696.0,0.74173]
[1739428941947,3.2078,2696.2,2696.1,0.7417]
[1739428942636,3.2078,2696.5,2696.0,3.2078]
[1739428942837,3.2078,2696.5,2695.9,5.03914635]
[1739428942838,0.00556163,2697.1,2697.0,0.74145]
[1739428943037,0.00556163,2697.1,2697.0,3.94925]
[1739428943244,0.00556163,2697.1,2697.0,44.74925]
[1739428943951,3.2078,2697.8,2697.0,45.86143]
[1739428944137,3.2078,2697.8,2697.4,3.2078]
[1739428944447,3.2078,2698.0,2697.5,1.792]
[1739428944652,0.5681,2698.2,2697.7,3.2078]
[1739428945144,1.31480163,2698.2,2697.7,3.95461163]
[1739428945341,0.57366163,2698.2,2697.7,0.00556163]
[1739428945847,0.74115,2698.1,2697.7,0.00556163]
[1739428946441,0.00556163,2698.2,2697.7,3.21336163]
[1739428946750,0.00556163,2698.2,2697.9,0.74118]
[1739428947148,0.00556163,2698.2,2698.1,0.74115]
[1739428947850,0.00556163,2698.2,2698.1,2.52815]
[1739428948246,0.00556163,2698.2,2698.1,43.32815]
[1739428948448,3.94869,2699.1,2698.5,0.74102]
[1739428948746,3.2078,2699.1,2698.3,3.2078]
[1739428949849,3.2078,2699.1,2698.4,3.77366559]
[1739428950048,3.94869,2699.1,2698.7,0.74097]
[1739428950249,3.2078,2699.1,2698.7,0.74097]
[1739428950551,3.2078,2699.1,2698.4,3.77366559]
[1739428951046,0.74101,2698.7,2698.5,1.785]
[1739428951651,0.74099,2698.7,2698.5,1.785]
[1739428951949,3.94868,2699.1,2698.6,0.74101]
[1739428952146,3.94868,2699.1,2698.5,1.785]
[1739428952547,3.2078,2699.1,2698.5,1.785]
[1739428952750,0.74094,2698.9,2698.5,2.52602]
[1739428953049,3.2078,2699.1,2698.5,1.782]
[1739428953255,0.74097,2698.8,2698.5,1.782]
[1739428953448,3.2078,2699.1,2698.5,2.52304]
[1739428953643,0.74096,2698.8,2698.5,1.782]
[1739428953848,0.74095,2698.9,2698.5,2.52303]
[1739428954049,3.2078,2699.1,2698.5,1.782]
[1739428954649,0.741,2698.7,2698.5,1.782]
[1739428955752,3.2078,2699.1,2698.5,1.782]
[1739428955956,0.74109,2698.4,2697.9,23.1754]
[1739428956250,0.74114,2698.2,2698.0,1.778]
[1739428956457,0.74107,2698.4,2698.2,0.74111]
[1739428956648,1.29713,2698.6,2698.0,1.778]
[1739428956849,3.2078,2698.8,2698.1,3.77366559]
[1739428957148,3.2078,2698.8,2698.2,3.2078]
[1739428957551,0.741,2698.7,2698.5,0.74103]
[1739428957755,3.94877,2698.8,2698.6,0.741]
[1739428957955,3.94877,2698.8,2698.6,0.74099]
[1739428958347,0.741,2698.7,2698.5,0.74103]
[1739428958549,0.74101,2698.6,2698.5,0.74103]
[1739428958748,3.2078,2698.8,2698.2,3.2078]
[1739428958949,0.7411,2698.3,2698.2,3.2078]
[1739428959254,0.7411,2698.3,2698.2,40.8]
[1739428959449,0.5933,2698.7,2698.2,40.8]
[1739428959450,0.74107,2698.4,2698.2,40.8]
[1739428959652,0.5395,2698.6,2697.9,3.2078]
[1739428959856,6.98146559,2698.0,2696.6,3.2078]
[1739428960155,5.49322,2698.5,2696.5,42.588]
[1739428960156,0.74152,2696.8,2696.5,42.588]
[1739428960456,0.74156,2696.6,2696.5,1.788]
[1739428960850,3.2078,2696.9,2696.5,1.788]
[1739428961056,0.00556163,2696.8,2696.5,1.788]
[1739428961264,0.74154,2696.7,2696.5,1.788]
[1739428961754,0.00556163,2696.8,2696.5,1.788]
[1739428961954,0.00556163,2696.8,2696.6,0.74156]
[1739428962154,0.00556163,2696.8,2696.5,1.788]
[1739428962356,0.00556163,2696.8,2696.7,0.74153]
[1739428962956,0.00556163,2696.8,2696.6,3.2078]
[1739428963255,0.00556163,2696.8,2696.7,40.8]
[1739428963452,0.74158,2696.6,2696.3,3.21336163]
[1739428963656,0.74158,2696.6,2696.3,0.00556163]
[1739428963860,0.00556163,2696.8,2696.3,5.00436163]
[1739428964164,0.00556163,2696.8,2696.6,0.74154]
[1739428964852,0.00556163,2696.8,2696.4,40.8]
[1739428965253,0.00556163,2696.8,2696.7,7.72299559]
[1739428966252,0.5923,2697.5,2696.7,12.98146559]
[1739428966455,0.5817,2697.8,2697.4,0.74134]
[1739428966755,3.2078,2697.8,2697.0,3.2078]
[1739428966955,0.5933,2697.7,2697.0,3.2078]
[1739428967156,0.5933,2697.7,2696.8,0.74149]
[1739428967359,0.74141,2697.2,2696.8,0.74149]
[1739428967559,3.2078,2697.5,2696.7,6.98146559]
[1739428967853,0.74141,2697.2,2696.8,0.7415]
[1739428968059,0.74142,2697.2,2696.8,3.2078]
[1739428968256,0.74142,2697.2,2696.8,0.74148]
[1739428968459,0.74138,2697.3,2696.9,0.74146]
[1739428968759,0.5811,2697.4,2696.8,1.798]
[1739428968952,0.74137,2697.3,2696.8,1.798]
[1739428969154,0.5811,2697.4,2696.8,1.798]
[1739428969863,0.5811,2697.4,2696.9,3.2078]
[1739428970062,0.5811,2697.4,2697.0,40.8]
[1739428970760,3.2078,2697.5,2697.0,44.57366559]
[1739428970964,3.2078,2697.5,2697.4,0.74134]
[1739428971556,3.2078,2697.8,2697.4,42.594]
[1739428971859,3.2078,2697.8,2697.6,0.74127]
[1739428972060,3.2078,2697.8,2697.7,0.74126]
[1739428972262,3.2078,2697.8,2697.6,0.74127]
[1739428972564,0.5373,2698.2,2697.7,3.2078]
[1739428973056,0.5373,2698.2,2698.1,0.74115]
[1739428973556,1.30952,2698.6,2698.3,0.74108]
[1739428974056,0.74104,2698.5,2698.2,0.74111]
[1739428974257,3.2078,2699.5,2698.4,6.98146559]
[1739428974467,3.2078,2699.5,2698.7,3.2078]
[1739428974763,0.74083,2699.3,2698.9,0.74092]
[1739428975054,0.74083,2699.3,2699.0,40.8]
[1739428975256,3.2078,2699.5,2699.0,40.8]
[1739428975463,0.74087,2699.2,2699.0,40.8]
[1739428975761,3.2078,2699.5,2699.0,40.8]
[1739428975963,0.74087,2699.1,2699.0,40.8]
[1739428976360,0.74084,2699.3,2699.0,40.8]
[1739428976763,0.74084,2699.3,2699.1,1.795]
[1739428977062,0.74085,2699.2,2699.1,1.795]
[1739428977262,0.74087,2699.1,2699.0,40.8]
[1739428977459,3.2078,2699.5,2698.8,1.796]
[1739428977659,0.74089,2699.1,2698.8,2.53695]
[1739428977866,0.74087,2699.2,2698.9,40.8]
[1739428978058,3.2078,2699.5,2698.8,2.53695]
[1739428978258,0.74089,2699.1,2698.8,1.796]
[1739428978464,0.74085,2699.2,2698.8,2.53695]
[1739428978665,0.74091,2699.0,2698.8,1.796]
[1739428978966,0.74089,2699.1,2698.8,1.796]
[1739428979167,3.2078,2699.5,2698.8,1.796]
[1739428979368,0.74092,2699.0,2698.8,1.796]
[1739428979664,0.74093,2698.9,2698.8,1.796]
[1739428979862,5.05972,2699.5,2698.8,1.796]
[1739428980063,0.74093,2698.9,2698.8,1.796]
[1739428980260,0.74092,2699.0,2698.8,1.796]
[1739428980567,3.2078,2699.2,2698.8,1.796]
[1739428980961,3.94865,2699.2,2698.8,1.796]
[1739428981367,1.1226,2699.8,2698.8,1.796]
[1739428981368,3.2078,2699.5,2698.8,1.796]
[1739428981563,1.1226,2699.8,2699.0,6.98146559]
[1739428981766,4.3304,2699.8,2699.2,0.74084]
[1739428982067,4.3304,2699.8,2699.1,0.00556163]
[1739428982068,0.74078,2699.5,2699.1,0.00556163]
[1739428982272,4.3304,2699.8,2699.4,0.74079]
[1739428982465,4.3304,2699.8,2699.4,1.792]
[1739428982667,0.74077,2699.5,2699.4,1.792]
[1739428982968,0.74085,2699.2,2699.1,3.21336163]
[1739428983170,0.74085,2699.2,2699.1,5.00336163]
[1739428983370,3.7831,2699.8,2699.1,8.77702722]
[1739428983566,5.63487,2699.8,2699.1,1.79556163]
[1739428983966,0.7408,2699.4,2699.2,0.74084]
[1739428984265,3.7831,2699.8,2699.1,5.00336163]
[1739428984662,0.74078,2699.5,2699.3,0.7408]
[1739428984867,3.7831,2699.8,2699.1,5.00336163]
[1739428985565,0.74072,2699.7,2699.5,0.74075]
[1739428985969,3.7831,2699.8,2699.5,3.2078]
[1739428985970,0.5753,2699.8,2699.5,3.2078]